fUSD/lending_fUSD_20260108
["ID","MTS","AMOUNT","RATE_DAILY","PERIOD"]
[400935544,1767867026696,533.55538103,0.00032876,120]
[400935545,1767867026744,500.0,0.00032876,120]
[400935546,1767867026844,500.0,0.00032876,120]
[400935547,1767867026905,500.0,0.00032876,120]
[400935548,1767867026958,615.24060337,0.00032876,120]
[400935549,1767867027208,1672.07,0.00032876,120]
[400935550,1767867027262,500.0,0.00032876,120]
[400935551,1767867027328,1281.79,0.00032876,120]
[400935552,1767867027381,500.0,0.00032876,120]
[400935553,1767867027468,1672.07,0.00032876,120]
[400935554,1767867027527,1281.79,0.00032876,120]
[400935555,1767867027591,500.0,0.00032876,120]
[400935556,1767867027671,500.0,0.00032876,120]
[400935557,1767867027733,1672.07,0.00032876,120]
[400935558,1767867027794,1281.79,0.00032876,120]
[400935559,1767867027856,500.0,0.00032876,120]
[400935560,1767867027934,1672.07,0.00032876,120]
[400935561,1767867028016,500.0,0.00032876,120]
[400935562,1767867028104,1281.79,0.00032876,120]
[400935563,1767867028156,500.0,0.00032876,120]
[400935564,1767867028219,1672.07,0.00032876,120]
[400935565,1767867028279,500.0,0.00032876,120]
[400935566,1767867028335,1281.79,0.00032876,120]
[400935567,1767867028389,500.0,0.00032876,120]
[400935568,1767867028570,1672.07,0.00032876,120]
[400935569,1767867028622,500.0,0.00032876,120]
[400935570,1767867028828,1281.79,0.00032876,120]
[400935571,1767867028919,500.0,0.00032876,120]
[400935572,1767867029127,1672.07,0.00032876,120]
[400935573,1767867029186,500.0,0.00032876,120]
[400935574,1767867029243,1281.79,0.00032876,120]
[400935575,1767867029307,500.0,0.00032876,120]
[400935576,1767867029365,1672.07,0.00032876,120]
[400935577,1767867029415,256.82046494,0.00032876,120]
[400935578,1767867029464,1281.79,0.00032876,120]
[400935579,1767867029516,500.0,0.00032876,120]
[400935580,1767867029572,1672.07,0.00032876,120]
[400935581,1767867029630,500.0,0.00032876,120]
[400935582,1767867029680,1281.79,0.00032876,120]
[400935583,1767867029783,1672.07,0.00032876,120]
[400935584,1767867029848,500.0,0.00032876,120]
[400935585,1767867029898,1281.79,0.00032876,120]
[400935586,1767867029955,1672.07,0.00032876,120]
[400935587,1767867030016,1281.79,0.00032876,120]
[400935588,1767867030075,1672.07,0.00032876,120]
[400935589,1767867030127,500.0,0.00032876,120]
[400935590,1767867030176,1281.79,0.00032876,120]
[400935591,1767867030225,-300.0,0.00011392,2]
[400935592,1767867030265,-1200.0,0.00011392,2]
[400935593,1767867030306,-243.0,0.00011392,2]
[400935594,1767867030342,-300.0,0.00011392,2]
[400935595,1767867031915,1672.07,0.00032876,120]
[400935596,1767867031955,238.71806011,0.00032876,120]
[400935597,1767867031992,1281.79,0.00032876,120]
[400935599,1767867032141,1672.07,0.00032876,120]
[400935602,1767867032251,1281.79,0.00032876,120]
[400935603,1767867032392,1672.07,0.00032876,120]
[400935604,1767867032451,1281.79,0.00032876,120]
[400935608,1767867032555,1672.07,0.00032876,120]
[400935613,1767867032599,1281.80234757,0.00032876,120]
[400935614,1767867032644,1672.07,0.00032876,120]
[400935615,1767867032700,1672.07,0.00032876,120]
[400935616,1767867032831,-5914.01,0.00011393,2]
[400935617,1767867032917,1672.07,0.00032876,120]
[400935618,1767867033187,1672.07,0.00032876,120]
[400935619,1767867033232,1672.07,0.00032876,120]
[400935620,1767867033295,1672.10076735,0.00032876,120]
[400935621,1767867033322,-3428.39740047,0.00011393,2]
[400935622,1767867033333,-450.04,0.00011393,2]
[400935623,1767867033468,-2082.37526384,0.00011393,2]
[400935624,1767867033480,-776.28283243,0.00011393,2]
[400935625,1767867033491,-555.66208952,0.00011393,2]
[400935626,1767867033503,-250.0,0.00011393,2]
[400935627,1767867033519,-2738.33598373,0.00011393,2]
[400935628,1767867033806,-10000.01,0.00011393,2]
[400935629,1767867034604,500.0,0.00032876,120]
[400935630,1767867034825,522.81475779,0.00032876,120]
[400935631,1767867034879,500.0,0.00032876,120]
[400935632,1767867035082,500.0,0.00032876,120]
[400935633,1767867035173,508.56,0.00032876,120]
[400935634,1767867035397,508.56,0.00032876,120]
[400935635,1767867035439,500.0,0.00032876,120]
[400935636,1767867035539,500.0,0.00032876,120]
[400935637,1767867035658,508.56,0.00032876,120]
[400935638,1767867035695,500.0,0.00032876,120]
[400935639,1767867035769,500.0,0.00032876,120]
[400935640,1767867035809,500.0,0.00032876,120]
[400935641,1767867035912,500.0,0.00032876,120]
[400935642,1767867036012,500.0,0.00032876,120]
[400935643,1767867036048,500.0,0.00032876,120]
[400935644,1767867036164,500.0,0.00032876,120]
[400935645,1767867036288,508.56,0.00032876,120]
[400935646,1767867036332,210.34979675,0.00032876,120]
[400935647,1767867036369,500.0,0.00032876,120]
[400935648,1767867036409,500.0,0.00032876,120]
[400935649,1767867036455,500.0,0.00032876,120]
[400935650,1767867036503,508.56,0.00032876,120]
[400935651,1767867036543,500.0,0.00032876,120]
[400935652,1767867036713,575.94100607,0.00032876,120]
[400935653,1767867036749,500.0,0.00032876,120]
[400935654,1767867036796,500.0,0.00032876,120]
[400935655,1767867036835,508.56,0.00032876,120]
[400935656,1767867036878,-10000.01,0.00011393,2]
[400935657,1767867036920,192.61777536,0.00032876,120]
[400935658,1767867036963,508.56,0.00032876,120]
[400935659,1767867037005,500.0,0.00032876,120]
[400935660,1767867037047,500.0,0.00032876,120]
[400935661,1767867037086,1189.54,0.00032876,120]
[400935662,1767867037180,508.56,0.00032876,120]
[400935663,1767867037214,500.0,0.00032876,120]
[400935664,1767867037270,500.0,0.00032876,120]
[400935665,1767867037327,1189.54,0.00032876,120]
[400935666,1767867037421,508.56,0.00032876,120]
[400935667,1767867037465,500.0,0.00032876,120]
[400935668,1767867037502,500.0,0.00032876,120]
[400935669,1767867037537,1189.54,0.00032876,120]
[400935670,1767867037703,508.56,0.00032876,120]
[400935671,1767867037744,500.0,0.00032876,120]
[400935672,1767867038103,625.95312799,0.00032876,120]
[400935673,1767867038162,1189.54,0.00032876,120]
[400935675,1767867038328,500.0,0.00032876,120]
[400935676,1767867038406,508.56,0.00032876,120]
[400935677,1767867038448,500.0,0.00032876,120]
[400935678,1767867038502,1189.54,0.00032876,120]
[400935679,1767867038538,1588.65,0.00032876,120]
[400935680,1767867038586,500.0,0.00032876,120]
[400935685,1767867038648,500.0,0.00032876,120]
[400935689,1767867038687,508.56,0.00032876,120]
[400935696,1767867038751,-1538.70909969,0.00011393,2]
[400935698,1767867038764,-19016.32010675,0.00011393,2]
[400935700,1767867038775,-3240.35295883,0.00011393,2]
[400935703,1767867038787,-9837.63106688,0.00011393,2]
[400935705,1767867038799,-24418.91535953,0.00011393,2]
[400935710,1767867038836,1588.65,0.00032876,120]
[400935714,1767867038873,1189.54,0.00032876,120]
[400935719,1767867038910,-1396.78893979,0.00011393,2]
[400935721,1767867038922,-564.0886184,0.00011393,2]
[400935724,1767867038934,-2216.65699587,0.00011393,2]
[400935726,1767867038946,-3839.98428623,0.00011393,2]
[400935728,1767867038958,-3631.7242066,0.00011393,2]
[400935730,1767867038970,-3633.09391118,0.00011393,2]
[400935732,1767867038984,-2419.60948229,0.00011393,2]
[400935735,1767867039011,-260.25,0.00011393,2]
[400935738,1767867039025,-2169.58896356,0.00011393,2]
[400935740,1767867039039,-429875.0,0.00011393,2]
[400935746,1767867039083,500.0,0.00032876,120]
[400935752,1767867039147,-495.90045966,0.00011393,2]
[400935754,1767867039160,-274.52056916,0.00011393,2]
[400935756,1767867039172,-423.81024343,0.00011393,2]
[400935759,1767867039185,-1053.9,0.00011393,2]
[400935761,1767867039198,-467.11573242,0.00011393,2]
[400935763,1767867039210,-338.06300778,0.00011393,2]
[400935765,1767867039223,-35950.37086681,0.00011393,2]
[400935770,1767867039262,500.0,0.00032876,120]
[400935776,1767867039309,508.56,0.00032876,120]
[400935778,1767867039344,-204858.81987147,0.00011393,2]
[400935780,1767867039354,-300.0,0.00011467,2]
[400935782,1767867039364,-324.9765641,0.00011492,2]
[400935784,1767867039375,-500.0,0.00011492,2]
[400935787,1767867039386,-500.0,0.00011492,2]
[400935789,1767867039395,-535.25571175,0.00011492,2]
[400935791,1767867039406,-1000.0,0.00011492,2]
[400935793,1767867039415,-2500.0,0.00011492,2]
[400935795,1767867039430,-9189.06423012,0.00011493,2]
[400935797,1767867039440,-39273.65,0.00011493,2]
[400935799,1767867039451,-150.99,0.00011493,2]
[400935801,1767867039462,-499.99,0.00011493,2]
[400935803,1767867039472,-9999.99,0.00011493,2]
[400935806,1767867039483,-9999.99,0.00011493,2]
[400935808,1767867039494,-1044.67,0.00011493,2]
[400935810,1767867039505,-3447.80214259,0.00011493,2]
[400935812,1767867039515,-8696.3836569,0.00011493,2]
[400935814,1767867039526,-195.0,0.00011516,2]
[400935816,1767867039536,-250.0,0.00011539,2]
[400935818,1767867039547,-195.0,0.0001156,2]
[400935820,1767867039557,-151.0,0.00011585,2]
[400935822,1767867039567,-151.0,0.00011585,2]
[400935825,1767867039578,-151.0,0.00011585,2]
[400935827,1767867039588,-151.0,0.00011585,2]
[400935829,1767867039598,-151.0,0.00011585,2]
[400935831,1767867039608,-151.0,0.00011585,2]
[400935833,1767867039624,-151.0,0.00011585,2]
[400935835,1767867039635,-151.0,0.00011585,2]
[400935837,1767867039646,-151.0,0.00011585,2]
[400935839,1767867039657,-151.0,0.00011585,2]
[400935842,1767867039669,-151.0,0.00011585,2]
[400935844,1767867039680,-151.0,0.00011585,2]
[400935846,1767867039691,-151.0,0.00011585,2]
[400935848,1767867039701,-151.0,0.00011585,2]
[400935850,1767867039711,-151.0,0.00011585,2]
[400935852,1767867039722,-151.0,0.00011585,2]
[400935854,1767867039733,-151.0,0.00011585,2]
[400935856,1767867039743,-151.0,0.00011585,2]
[400935858,1767867039754,-151.0,0.00011585,2]
[400935861,1767867039764,-151.0,0.00011585,2]
[400935863,1767867039775,-151.0,0.00011585,2]
[400935865,1767867039786,-151.0,0.00011585,2]
[400935867,1767867039798,-151.0,0.00011585,2]
[400935869,1767867039809,-151.0,0.00011585,2]
[400935872,1767867039823,-151.0,0.00011585,2]
[400935874,1767867039833,-151.0,0.00011585,2]
[400935876,1767867039844,-151.0,0.00011585,2]
[400935878,1767867039855,-151.0,0.00011585,2]
[400935881,1767867039866,-151.0,0.00011585,2]
[400935883,1767867039877,-151.0,0.00011585,2]
[400935885,1767867039888,-151.0,0.00011585,2]
[400935887,1767867039898,-3670.936,0.0001159,2]
[400935889,1767867039909,-244.851,0.0001159,2]
[400935891,1767867039920,-22841.20927109,0.00011591,2]
[400935893,1767867039931,-4579.4869,0.00011593,2]
[400935895,1767867039941,-20658.1,0.00011621,2]
[400935898,1767867039952,-538.59,0.00011721,2]
[400935900,1767867039962,-1044.67,0.00011767,2]
[400935902,1767867039972,-150.0,0.00011775,2]
[400935904,1767867039983,-9830.63444844,0.00011802,2]
[400935906,1767867039998,-1000.0,0.00011927,2]
[400935909,1767867040012,-1044.67,0.00012041,2]
[400935911,1767867040023,-6500.38,0.00012135,2]
[400935913,1767867040034,-500.0,0.00012138,2]
[400935915,1767867040045,-3447.80214252,0.00012205,2]
[400935917,1767867040056,-8696.38365689,0.00012205,2]
[400935919,1767867040067,-1044.67,0.00012315,2]
[400935921,1767867040078,-538.59,0.00012338,2]
[400935923,1767867040088,-1000.0,0.00012376,2]
[400935925,1767867040098,-500.0,0.00012412,2]
[400935927,1767867040108,-255.0,0.00012451,2]
[400935929,1767867040119,-300.0,0.00012513,2]
[400935931,1767867040128,-420.0,0.00012513,2]
[400935933,1767867040138,-1680.0,0.00012531,2]
[400935935,1767867040148,-300.0,0.00012531,2]
[400935938,1767867040160,-253.73227451,0.00012531,2]
[400935940,1767867040171,-195.0,0.00012531,2]
[400935942,1767867040181,-193.0,0.00012531,2]
[400935944,1767867040191,-289.75584827,0.00012531,2]
[400935946,1767867040202,-300.0,0.00012531,2]
[400935948,1767867040212,-434.86163533,0.00012561,2]
[400935950,1767867040222,-1044.67,0.00012589,2]
[400935952,1767867040233,-1680.0,0.00012622,2]
[400935955,1767867040243,-195.0,0.00012639,2]
[400935958,1767867040253,-193.0,0.00012639,2]
[400935960,1767867040264,-350.0,0.00012642,2]
[400935963,1767867040274,-250.0,0.00012642,2]
[400935965,1767867040284,-195.0,0.00012642,2]
[400935967,1767867040294,-500.0,0.00012686,2]
[400935969,1767867040304,-1044.67,0.00012863,2]
[400935971,1767867040314,-3447.80214252,0.00012917,2]
[400935973,1767867040323,-8696.38365689,0.00012917,2]
[400935975,1767867040333,-538.59,0.00012955,2]
[400935977,1767867040344,-500.0,0.0001296,2]
[400935979,1767867040353,-1044.67,0.00013137,2]
[400935981,1767867040363,-2499.46,0.000132,2]
[400935983,1767867040373,-500.0,0.00013234,2]
[400935985,1767867040382,-600.0,0.00013351,2]
[400935987,1767867040392,-346.31,0.00013351,2]
[400935989,1767867040403,-1044.74009015,0.00013411,2]
[400935991,1767867040413,-500.0,0.00013508,2]
[400935993,1767867040424,-538.59,0.00013571,2]
[400935995,1767867040434,-433.0,0.00013613,2]
[400935997,1767867040444,-434.86163533,0.00013629,2]
[400935999,1767867040454,-3447.80214252,0.00013629,2]
[400936001,1767867040464,-8696.38365689,0.00013629,2]
[400936003,1767867040474,-500.0,0.00013698,2]
[400936005,1767867040484,-500.0,0.00013698,2]
[400936007,1767867040495,-507.89103997,0.00013698,2]
[400936009,1767867040504,-500.0,0.00013698,2]
[400936011,1767867040514,-500.0,0.00013698,2]
[400936014,1767867040524,-500.0,0.00013698,2]
[400936016,1767867040534,-500.0,0.00013698,2]
[400936018,1767867040544,-589.99,0.00013698,2]
[400936020,1767867040554,-589.99,0.00013698,2]
[400936022,1767867040564,-589.99,0.00013698,2]
[400936024,1767867040574,-589.99,0.00013698,2]
[400936026,1767867040584,-589.99,0.00013698,2]
[400936028,1767867040594,-589.99,0.00013698,2]
[400936030,1767867040604,-589.99,0.00013698,2]
[400936032,1767867040614,-589.99,0.00013698,2]
[400936034,1767867040626,-589.99,0.00013698,2]
[400936036,1767867040636,-589.99,0.00013698,2]
[400936038,1767867040646,-589.99,0.00013698,2]
[400936040,1767867040658,-589.99,0.00013698,2]
[400936043,1767867040668,-589.99,0.00013698,2]
[400936045,1767867040678,-511.67545241,0.00013698,2]
[400936047,1767867040688,-500.0,0.00013698,2]
[400936049,1767867040698,-500.0,0.00013698,2]
[400936051,1767867040708,-500.0,0.00013698,2]
[400936053,1767867040718,-525.57552704,0.00013698,2]
[400936055,1767867040728,-187.7,0.00013698,2]
[400936057,1767867040738,-530.89600928,0.00013698,2]
[400936059,1767867040748,-500.0,0.00013698,2]
[400936061,1767867040759,-500.0,0.00013698,2]
[400936103,1767867041148,-500.0,0.00013698,2]
[400936108,1767867041183,-500.0,0.00013698,2]
[400936110,1767867041192,-500.0,0.00013698,2]
[400936112,1767867041201,-500.0,0.00013698,2]
[400936114,1767867041210,-500.0,0.00013698,2]
[400936116,1767867041219,-500.0,0.00013698,2]
[400936117,1767867041229,-534.92861577,0.00013698,2]
[400936120,1767867041239,-500.0,0.00013698,2]
[400936122,1767867041249,-500.0,0.00013698,2]
[400936124,1767867041258,-500.0,0.00013698,2]
[400936126,1767867041267,-500.0,0.00013698,2]
[400936128,1767867041276,-591.02646287,0.00013698,2]
[400936130,1767867041286,-500.0,0.00013698,2]
[400936132,1767867041295,-500.0,0.00013698,2]
[400936133,1767867041304,-500.0,0.00013698,2]
[400936135,1767867041314,-500.0,0.00013698,2]
[400936138,1767867041323,-500.0,0.00013698,2]
[400936140,1767867041334,-500.0,0.00013698,2]
[400936142,1767867041343,-500.0,0.00013698,2]
[400936144,1767867041352,-500.0,0.00013698,2]
[400936146,1767867041362,-500.0,0.00013698,2]
[400936148,1767867041371,-500.0,0.00013698,2]
[400936150,1767867041380,-500.0,0.00013698,2]
[400936152,1767867041390,-500.0,0.00013698,2]
[400936154,1767867041399,-3895.88,0.00013699,2]
[400936156,1767867041410,-587.0,0.00013745,2]
[400936158,1767867041419,-1000.0,0.00013751,2]
[400936160,1767867041428,-536.89418062,0.00013782,2]
[400936162,1767867041438,-2351.0,0.00013784,2]
[400936164,1767867041447,-579.70625814,0.00013837,2]
[400936166,1767867041456,-2351.0,0.00013863,2]
[400936168,1767867041466,-305.0983523,0.00013888,2]
[400936170,1767867041475,-250.031061,0.00014,2]
[400936172,1767867041485,-538.59,0.00014188,2]
[400936174,1767867041494,-3447.80214252,0.00014341,2]
[400936176,1767867041503,-8696.38365689,0.00014341,2]
[400936178,1767867041512,-166.66,0.00014357,2]
[400936180,1767867041522,-151.0,0.00014644,2]
[400936182,1767867041531,-151.0,0.00014646,2]
[400936184,1767867041541,-199.19,0.00014649,2]
[400936186,1767867041550,-151.0,0.00014652,2]
[400936188,1767867041560,-151.0,0.0001466,2]
[400936190,1767867041570,-434.86163533,0.00014697,2]
[400936192,1767867041580,-589.99,0.0001472,2]
[400936194,1767867041589,-500.0,0.0001472,2]
[400936196,1767867041598,-500.0,0.0001472,2]
[400936198,1767867041608,-500.0,0.0001472,2]
[400936200,1767867041617,-500.0,0.0001472,2]
[400936202,1767867041626,-317.76518158,0.0001472,2]
[400936204,1767867041636,-322.6107,0.00014732,2]
[400936206,1767867041646,-574.12855637,0.00014732,2]
[400936208,1767867041656,-263.14162042,0.00014732,2]
[400936210,1767867041666,-500.0,0.00014732,2]
[400936212,1767867041675,-500.0,0.00014732,2]
[400936214,1767867041684,-1500.0,0.00014732,2]
[400936216,1767867041693,-500.0,0.00014732,2]
[400936218,1767867041703,-1500.0,0.00014732,2]
[400936220,1767867041712,-500.0,0.00014732,2]
[400936222,1767867041721,-1500.0,0.00014732,2]
[400936224,1767867041731,-500.0,0.00014732,2]
[400936226,1767867041742,-1500.0,0.00014732,2]
[400936228,1767867041752,-500.0,0.00014732,2]
[400936230,1767867041761,-1500.0,0.00014732,2]
[400936232,1767867041770,-500.0,0.00014732,2]
[400936234,1767867041780,-500.0,0.00014732,2]
[400936236,1767867041789,-1500.0,0.00014732,2]
[400936238,1767867041798,-500.0,0.00014732,2]
[400936240,1767867041808,-500.0,0.00014732,2]
[400936242,1767867041817,-1500.0,0.00014732,2]
[400936244,1767867041826,-500.0,0.00014732,2]
[400936246,1767867041835,-500.0,0.00014732,2]
[400936248,1767867041845,-1500.0,0.00014732,2]
[400936250,1767867041854,-500.0,0.00014732,2]
[400936252,1767867041863,-1500.0,0.00014732,2]
[400936254,1767867041872,-500.0,0.00014732,2]
[400936256,1767867041881,-500.0,0.00014732,2]
[400936258,1767867041890,-419.95971989,0.00014732,2]
[400936260,1767867041900,-1500.0,0.00014732,2]
[400936262,1767867041910,-1500.0,0.00014732,2]
[400936264,1767867041919,-151.0,0.00014732,2]
[400936266,1767867041928,-578.20924308,0.00014732,2]
[400936268,1767867041939,-500.0,0.00014732,2]
[400936270,1767867041948,-500.0,0.00014732,2]
[400936272,1767867041957,-500.0,0.00014732,2]
[400936274,1767867041966,-500.0,0.00014732,2]
[400936276,1767867041975,-500.0,0.00014732,2]
[400936278,1767867041985,-500.0,0.00014732,2]
[400936280,1767867041999,-500.0,0.00014732,2]
[400936282,1767867042009,-500.0,0.00014732,2]
[400936284,1767867042019,-500.0,0.00014732,2]
[400936286,1767867042031,-2000.0,0.00014732,2]
[400936289,1767867042042,-500.0,0.00014732,2]
[400936291,1767867042051,-2000.0,0.00014732,2]
[400936293,1767867042060,-500.0,0.00014732,2]
[400936295,1767867042070,-2000.0,0.00014732,2]
[400936297,1767867042079,-2000.0,0.00014732,2]
[400936299,1767867042088,-2000.0,0.00014732,2]
[400936300,1767867042097,-2000.0,0.00014732,2]
[400936302,1767867042107,-2000.0,0.00014732,2]
[400936304,1767867042116,-2000.0,0.00014732,2]
[400936307,1767867042125,-2000.0,0.00014732,2]
[400936309,1767867042136,-2000.0,0.00014732,2]
[400936311,1767867042145,-2000.0,0.00014732,2]
[400936313,1767867042154,-620.0,0.00014732,2]
[400936315,1767867042163,-500.0,0.00014763,2]
[400936317,1767867042172,-500.0,0.00014763,2]
[400936319,1767867042182,-500.0,0.00014763,2]
[400936321,1767867042191,-500.0,0.00014763,2]
[400936323,1767867042200,-500.0,0.00014763,2]
[400936325,1767867042209,-500.0,0.00014763,2]
[400936327,1767867042219,-552.68956986,0.00014763,2]
[400936329,1767867042227,-500.0,0.00014763,2]
[400936331,1767867042237,-500.0,0.00014763,2]
[400936333,1767867042246,-169.07455586,0.00014763,2]
[400936335,1767867042255,-500.0,0.00014763,2]
[400936337,1767867042265,-500.0,0.00014763,2]
[400936339,1767867042274,-500.29238726,0.00014763,2]
[400936341,1767867042283,-500.0,0.00014763,2]
[400936343,1767867042293,-216.92080784,0.00014763,2]
[400936345,1767867042302,-163.32215659,0.00014763,2]
[400936347,1767867042311,-500.0,0.00014763,2]
[400936349,1767867042320,-500.0,0.00014763,2]
[400936351,1767867042330,-500.0,0.00014763,2]
[400936353,1767867042339,-500.0,0.00014763,2]
[400936355,1767867042348,-500.0,0.00014763,2]
[400936357,1767867042358,-501.56644481,0.00014763,2]
[400936359,1767867042367,-486.22003068,0.00014763,2]
[400936360,1767867042376,-500.0,0.00014763,2]
[400936361,1767867042385,-500.0,0.00014763,2]
[400936362,1767867042394,-500.0,0.00014763,2]
[400936363,1767867042406,-500.0,0.00014763,2]
[400936364,1767867042417,-165.70843486,0.00014763,2]
[400936365,1767867042426,-166.27119183,0.00014763,2]
[400936366,1767867042435,-500.0,0.00014763,2]
[400936367,1767867042447,-500.0,0.00014763,2]
[400936368,1767867042456,-538.59,0.00014805,2]
[400936369,1767867042466,-166.66,0.00014831,2]
[400936370,1767867042474,-736.0,0.00014878,2]
[400936371,1767867042484,-250.0,0.0001502,2]
[400936372,1767867042493,-3447.80214252,0.00015052,2]
[400936373,1767867042502,-8696.38365689,0.00015052,2]
[400936374,1767867042512,-150.0,0.00015098,2]
[400936375,1767867042521,-150.0,0.00015098,2]
[400936376,1767867042531,-500.0,0.00015098,2]
[400936378,1767867042542,-150.0,0.00015098,2]
[400936380,1767867042552,-150.0,0.00015098,2]
[400936382,1767867042561,-581.0,0.00015098,2]
[400936384,1767867042571,-150.0,0.00015098,2]
[400936386,1767867042580,-446.0,0.00015098,2]
[400936388,1767867042590,-500.0,0.00015098,2]
[400936390,1767867042599,-150.0,0.00015098,2]
[400936392,1767867042609,-500.0,0.00015098,2]
[400936394,1767867042619,-150.0,0.00015098,2]
[400936396,1767867042628,-500.0,0.00015098,2]
[400936398,1767867042637,-150.0,0.00015098,2]
[400936400,1767867042646,-150.0,0.00015098,2]
[400936402,1767867042658,-150.0,0.00015098,2]
[400936404,1767867042667,-150.0,0.00015098,2]
[400936406,1767867042677,-150.0,0.00015098,2]
[400936408,1767867042687,-500.0,0.00015098,2]
[400936410,1767867042696,-500.0,0.00015098,2]
[400936412,1767867042705,-150.6048441,0.00015098,2]
[400936414,1767867042715,-150.49525617,0.00015098,2]
[400936416,1767867042724,-500.0,0.00015098,2]
[400936419,1767867042734,-500.0,0.00015098,2]
[400936420,1767867042744,-150.0,0.00015098,2]
[400936422,1767867042753,-150.0,0.00015098,2]
[400936424,1767867042763,-500.0,0.00015098,2]
[400936426,1767867042772,-288.61019467,0.00015098,2]
[400936428,1767867042782,-150.0,0.00015098,2]
[400936430,1767867042794,-150.0,0.00015098,2]
[400936432,1767867042804,-221.72177176,0.00015098,2]
[400936434,1767867042813,-823.0,0.00015099,2]
[400936436,1767867042822,-1000.0,0.00015126,2]
[400936438,1767867042832,-150.0,0.00015153,2]
[400936440,1767867042841,-150.0,0.00015153,2]
[400936443,1767867042851,-500.0,0.00015153,2]
[400936445,1767867042861,-150.0,0.00015153,2]
[400936447,1767867042871,-182.10117033,0.00015153,2]
[400936449,1767867042880,-581.0,0.00015153,2]
[400936450,1767867042890,-231.03492311,0.00015153,2]
[400936452,1767867042899,-446.0,0.00015153,2]
[400936455,1767867042910,-500.0,0.00015153,2]
[400936457,1767867042921,-233.66248833,0.00015153,2]
[400936459,1767867042930,-500.0,0.00015153,2]
[400936460,1767867042939,-150.0,0.00015153,2]
[400936463,1767867042949,-500.0,0.00015153,2]
[400936464,1767867042958,-150.0,0.00015153,2]
[400936466,1767867042967,-150.0,0.00015153,2]
[400936469,1767867042977,-150.0,0.00015153,2]
[400936471,1767867042988,-150.0,0.00015153,2]
[400936473,1767867043001,-500.0,0.00015153,2]
[400936475,1767867043011,-500.0,0.00015153,2]
[400936477,1767867043022,-500.0,0.00015153,2]
[400936479,1767867043031,-500.0,0.00015153,2]
[400936481,1767867043040,-150.0,0.00015153,2]
[400936483,1767867043050,-184.06920116,0.00015153,2]
[400936485,1767867043060,-500.0,0.00015153,2]
[400936487,1767867043070,-150.0,0.00015153,2]
[400936489,1767867043080,-250.0,0.00015153,2]
[400936491,1767867043089,-3292.0,0.00015163,2]
[400936493,1767867043098,-200.0,0.00015208,2]
[400936495,1767867043107,-200.0,0.00015208,2]
[400936497,1767867043116,-173.0,0.00015208,2]
[400936499,1767867043125,-200.0,0.00015208,2]
[400936501,1767867043134,-581.0,0.00015208,2]
[400936502,1767867043143,-446.0,0.00015208,2]
[400936504,1767867043154,-500.0,0.00015208,2]
[400936506,1767867043164,-500.0,0.00015208,2]
[400936508,1767867043174,-150.0,0.00015208,2]